bitfinex-derivatives/quotes_SOLF0:USTF0_20250202
["timestamp","ask_amount","ask_price","bid_price","bid_amount"]
[1738457507920,0.03015574,216.89,216.8,0.65248164]
[1738457508419,0.03015574,216.89,216.78,1.5477]
[1738457508720,0.03015574,216.89,216.78,6.1608]
[1738457508721,4.6116,216.86,216.78,6.1608]
[1738457509214,4.6121,216.83,216.74,12.5702214]
[1738457509425,0.03060186,216.84,216.73,2.6993]
[1738457510315,4.6123,216.82,216.73,4.614]
[1738457510514,4.6123,216.82,216.71,103.7702214]
[1738457510913,0.03034472,216.79,216.73,4.6141]
[1738457511221,0.03034472,216.79,216.71,103.7702214]
[1738457511718,0.03034472,216.79,216.74,4.6138]
[1738457512222,0.03034472,216.79,216.74,12.5702214]
[1738457512422,0.03034472,216.79,216.77,4.6132]
[1738457513024,1.5374,216.86,216.77,4.6132]
[1738457513025,4.6114,216.87,216.77,12.5702214]
[1738457513221,2.8682,216.89,216.77,12.5702214]
[1738457513422,12.5702214,216.93,216.8,12.5702214]
[1738457514426,0.03114534,216.89,216.84,0.03080091]
[1738457517633,4.6117,216.85,216.84,0.03080091]
[1738457518925,4.6126,216.81,216.72,1.466]
[1738457519317,12.5702214,216.84,216.75,4.6137]
[1738457519521,4.6122,216.83,216.72,1.466]
[1738457519721,12.5702214,216.81,216.68,12.5702214]
[1738457520121,0.03289476,216.77,216.68,12.5702214]
[1738457520927,4.64639476,216.77,216.69,4.615]
[1738457521123,4.64639476,216.77,216.65,15.5650214]
[1738457521124,0.03289476,216.77,216.65,15.5650214]
[1738457521327,0.03289476,216.77,216.65,12.5702214]
[1738457521528,4.6142,216.73,216.65,17.1861214]
[1738457521724,12.5702214,216.78,216.65,17.1861214]
[1738457522026,0.03525947,216.71,216.66,4.6157]
[1738457522431,0.03525947,216.71,216.65,12.5702214]
[1738457523028,0.03525947,216.71,216.68,12.5702214]
[1738457523222,1.4401,216.8,216.68,12.5702214]
[1738457523928,1.4401,216.8,216.71,4.6146]
[1738457524329,0.03058444,216.78,216.73,0.03498476]
[1738457524532,0.03058444,216.78,216.73,4.64918476]
[1738457524728,0.03058444,216.78,216.73,0.03498476]
[1738457526729,0.03058444,216.78,216.76,4.6135]
[1738457527031,12.5702214,216.87,216.74,12.5702214]
[1738457527232,14.1064214,216.9,216.74,12.5702214]
[1738457527532,14.1064214,216.9,216.79,4.6128]
[1738457528331,0.02952895,216.87,216.82,0.03315462]
[1738457528930,17.21095035,216.87,216.82,0.03315462]
[1738457529132,12.59975035,216.87,216.82,0.03315462]
[1738457529829,4.6121,216.83,216.82,0.03315462]
[1738457530035,12.59975035,216.87,216.82,0.03315462]
[1738457530828,4.6119,216.85,216.82,0.03315462]
[1738457531230,12.5702214,216.84,216.82,0.03315462]
[1738457531535,12.5702214,216.84,216.75,4.6136]
[1738457531736,12.5702214,216.84,216.72,3.0652]
[1738457532234,17.1823214,216.84,216.76,4.6136]
[1738457532436,12.5702214,216.87,216.72,3.0652]
[1738457532632,0.03248999,216.82,216.78,0.03393684]
[1738457534640,12.5702214,216.96,216.8,12.5702214]
[1738457534943,12.5702214,216.96,216.83,12.5702214]
[1738457535145,12.5702214,216.93,216.77,12.5702214]
[1738457535347,12.5702214,216.9,216.77,12.5702214]
[1738457535846,0.0315502,216.86,216.81,0.03462623]
[1738457537649,0.0315502,216.86,216.81,4.64712623]
[1738457537947,0.0315502,216.86,216.81,0.03462623]
[1738457538148,0.0315502,216.86,216.83,4.612]
[1738457538348,0.0315502,216.86,216.81,0.03462623]
[1738457539243,0.0315502,216.86,216.85,4.6117]
[1738457543253,4.6091,216.97,216.89,4.6108]
[1738457543957,4.6093,216.96,216.89,4.6108]
[1738457544154,1.5489,216.98,216.89,4.6108]
[1738457544347,0.03193757,216.96,216.91,0.03187307]
[1738457544953,0.03193757,216.96,216.92,4.6102]
[1738457545155,0.03193757,216.96,216.91,0.03187307]
[1738457546761,0.03193757,216.96,216.93,4.6098]
[1738457547158,0.03193757,216.96,216.92,12.5702214]
[1738457547359,4.6071,217.07,216.95,12.5702214]
[1738457547653,25.15710818,217.08,216.95,12.5702214]
[1738457547852,25.15710818,217.08,216.92,18.6311214]
[1738457547853,12.5702214,217.05,216.92,18.6311214]
[1738457548053,12.5702214,217.05,216.89,3.1]
[1738457548054,1.4759,217.04,216.89,15.6702214]
[1738457548457,0.03362964,216.99,216.94,0.03045339]
[1738457549158,0.03362964,216.99,216.95,4.6095]
[1738457549359,0.03362964,216.99,216.94,0.03045339]
[1738457549662,0.03362964,216.99,216.94,4.63995339]
[1738457549860,0.03362964,216.99,216.94,0.03045339]
[1738457550556,0.03362964,216.99,216.95,12.5702214]
[1738457550751,0.03362964,216.99,216.98,4.6089]
[1738457561171,0.03362964,216.99,216.95,12.5702214]
[1738457561670,0.03362964,216.99,216.98,8.0737194]
[1738457562570,0.03362964,216.99,216.94,8.10417279]
[1738457562976,8.10734904,216.99,216.94,0.03045339]
[1738457563176,8.0737194,216.97,216.94,0.03045339]
[1738457563567,4.6093,216.96,216.94,0.03045339]
[1738457564574,4.6095,216.95,216.94,0.03045339]
[1738457565577,4.4158,216.98,216.94,0.03045339]
[1738457565877,4.6093,216.97,216.94,0.03045339]
[1738457566171,4.4158,216.98,216.94,0.03045339]
[1738457566379,4.6093,216.96,216.94,0.03045339]
[1738457567674,4.6093,216.96,216.9,4.6106]
[1738457567977,4.4158,216.98,216.87,12.62534383]
[1738457568977,0.03322212,216.95,216.9,0.03461299]
[1738457569779,0.03322212,216.95,216.9,4.64511299]
[1738457570469,0.03322212,216.95,216.93,4.6099]
[1738457570668,0.03322212,216.95,216.93,12.62534383]
[1738457571074,0.03322212,216.95,216.94,4.6097]
[1738457573082,0.03322212,216.95,216.93,12.62534383]
[1738457573684,0.03322212,216.95,216.93,17.23524383]
[1738457574880,0.03322212,216.95,216.93,12.62534383]
[1738457575085,0.03322212,216.95,216.94,4.6097]
[1738457575286,0.03322212,216.95,216.93,12.62534383]
[1738457576588,0.03322212,216.95,216.94,4.6097]
[1738457576784,0.03322212,216.95,216.9,0.03461299]
[1738457577283,4.6108,216.89,216.82,12.62534383]
[1738457577479,12.62534383,216.97,216.82,12.62534383]
[1738457577679,15.72534383,217.0,216.85,12.62534383]
[1738457578188,3.1,217.0,216.88,12.62534383]
[1738457578388,0.03416903,216.95,216.9,0.03074582]
[1738457580688,4.64376903,216.95,216.9,0.03074582]
[1738457582395,0.03416903,216.95,216.91,12.62534383]
[1738457584696,0.03416903,216.95,216.94,12.62534383]
[1738457587896,34.59317497,217.12,216.94,12.62534383]
[1738457588195,2.852,217.1,216.98,12.62534383]
[1738457588996,4.63656682,217.06,217.02,0.03088786]
[1738457590400,0.02926682,217.06,217.02,0.03088786]
[1738457591897,4.6078,217.04,217.02,0.03088786]
[1738457592391,0.02926682,217.06,217.02,0.03088786]
[1738457593199,4.6077,217.04,217.02,0.03088786]
[1738457598706,4.6078,217.03,217.02,0.03088786]
[1738457599311,4.6088,216.99,216.96,8.0733492]
[1738457602305,0.03174872,217.0,216.96,8.0733492]
[1738457602511,0.03174872,217.0,216.95,0.03419258]
[1738457602711,8.10509792,217.0,216.95,0.03419258]
[1738457603108,4.6093,216.96,216.95,0.03419258]
[1738457604414,4.6104,216.91,216.9,8.0733492]
[1738457605212,8.0733492,216.94,216.88,8.0733492]
[1738457605414,8.0733492,216.92,216.84,8.0733492]
[1738457605621,8.0733492,216.9,216.89,0.03390944]
[1738457606109,4.6104,216.91,216.89,0.03390944]
[1738457607319,8.0733492,216.9,216.84,8.0733492]
[1738457607720,12.66550486,216.93,216.79,12.63501777]
[1738457608024,4.6119,216.84,216.79,12.63501777]
[1738457608617,4.6453862,216.84,216.79,12.63501777]
[1738457609720,4.6122,216.83,216.79,12.63501777]
[1738457610019,0.0334862,216.84,216.76,12.63501777]
[1738457610214,0.0334862,216.84,216.73,12.63501777]
[1738457610412,4.6136,216.76,216.73,12.63501777]
[1738457610611,12.63501777,216.87,216.73,12.63501777]
[1738457610813,0.03342011,216.77,216.73,12.63501777]
[1738457611120,12.63501777,216.87,216.73,12.63501777]
[1738457611322,12.63501777,216.84,216.7,12.63501777]
[1738457611522,0.03388761,216.82,216.7,12.63501777]
[1738457611918,4.6144,216.72,216.7,12.63501777]
[1738457612519,0.03412703,216.73,216.7,12.63501777]
[1738457613123,4.6145,216.72,216.7,12.63501777]
[1738457613617,0.03412703,216.73,216.7,12.63501777]
[1738457613923,1.4303,216.83,216.7,12.63501777]
[1738457614123,1.4303,216.83,216.74,12.63501777]
[1738457615119,0.03528746,216.81,216.76,0.03185492]
[1738457615516,4.6143,216.73,216.71,12.63501777]
[1738457615721,1.5076,216.8,216.68,12.63501777]
[1738457616122,4.6144,216.72,216.68,12.63501777]
[1738457616722,4.64595033,216.72,216.68,12.63501777]
[1738457619228,4.615,216.69,216.68,12.63501777]
[1738457619428,0.03155033,216.72,216.65,12.63501777]
[1738457619623,3.1,216.79,216.65,12.63501777]
[1738457619928,0.03398211,216.75,216.65,12.63501777]
[1738457620518,4.6155,216.68,216.65,12.63501777]
[1738457621227,4.6155,216.67,216.65,12.63501777]
[1738457621527,0.03242706,216.69,216.62,12.63501777]
[1738457621931,14.09991777,216.78,216.62,12.63501777]
[1738457622119,4.6156,216.67,216.62,12.63501777]
[1738457622323,0.03139842,216.68,216.62,12.63501777]
[1738457623119,4.6163,216.63,216.62,12.63501777]
[1738457625127,4.6169,216.61,216.59,12.63501777]
[1738457625329,12.63501777,216.72,216.56,12.63501777]
[1738457625528,0.02967981,216.62,216.56,12.63501777]
[1738457625731,4.6169,216.61,216.56,12.63501777]
[1738457626027,0.03442515,216.61,216.56,12.63501777]
[1738457626526,4.6174,216.58,216.56,12.63501777]
[1738457627830,0.03442515,216.61,216.56,12.63501777]
[1738457628023,0.03442515,216.61,216.59,12.63501777]
[1738457628530,0.03442515,216.61,216.56,12.63501777]
[1738457628929,0.03442515,216.61,216.53,12.63501777]
[1738457629127,4.6182,216.54,216.53,12.63501777]
[1738457629730,4.6171,216.6,216.53,12.63501777]
[1738457629928,4.6171,216.6,216.58,12.63501777]
[1738457630429,2.9232,216.67,216.58,12.63501777]
[1738457630927,0.03349312,216.65,216.6,0.03489016]
[1738457631329,4.6168,216.61,216.6,0.03489016]
[1738457635332,3.1,216.61,216.46,12.63501777]
[1738457635536,12.63501777,216.59,216.43,12.63501777]
[1738457636033,1.4935,216.58,216.43,12.63501777]
[1738457636331,0.03139722,216.53,216.43,12.63501777]
[1738457637734,4.6195,216.49,216.43,12.63501777]
[1738457637936,1.4935,216.58,216.46,12.63501777]
[1738457638135,0.03369649,216.48,216.46,12.63501777]
[1738457638335,1.4935,216.58,216.46,12.63501777]
[1738457638537,0.03304312,216.49,216.46,12.63501777]
[1738457638735,1.4935,216.58,216.46,12.63501777]
[1738457639035,0.03229569,216.5,216.46,12.63501777]
[1738457639334,0.03229569,216.5,216.43,12.63501777]
[1738457640337,4.6198,216.47,216.43,12.63501777]
[1738457640731,0.03229569,216.5,216.43,12.63501777]
[1738457641036,0.03229569,216.5,216.4,12.63501777]
[1738457641729,4.6209,216.42,216.4,12.63501777]
[1738457642836,4.621,216.41,216.4,12.63501777]
[1738457643035,12.63501777,216.41,216.28,12.63501777]
[1738457643240,4.6233,216.31,216.28,12.63501777]
[1738457643641,2.9745,216.42,216.28,12.63501777]
[1738457643836,0.03380074,216.32,216.31,12.63501777]
[1738457644042,4.622,216.37,216.31,12.63501777]
[1738457644344,0.03215632,216.34,216.31,12.63501777]
[1738457646447,4.6228,216.33,216.31,12.63501777]
[1738457648045,0.03215632,216.34,216.31,12.63501777]
[1738457648244,4.65475632,216.34,216.31,12.63501777]
[1738457648441,0.03215632,216.34,216.25,12.63501777]
[1738457648742,0.03012558,216.32,216.28,12.63501777]
[1738457648947,12.63501777,216.41,216.28,12.63501777]
[1738457649144,0.02926334,216.32,216.28,12.63501777]
[1738457649348,12.63501777,216.41,216.28,12.63501777]
[1738457649849,0.03538245,216.37,216.36,12.63501777]
[1738457650044,12.63501777,216.51,216.36,12.63501777]
[1738457651346,0.03115596,216.45,216.4,0.03479957]
[1738457652853,4.6206,216.43,216.4,0.03479957]
[1738457658857,4.65145596,216.45,216.4,0.03479957]
[1738457661856,4.6204,216.44,216.4,0.03479957]
[1738457662157,4.5936788,216.44,216.4,0.03479957]
[1738457663656,0.03115596,216.45,216.4,0.03479957]
[1738457664257,4.6204,216.44,216.4,0.03479957]
[1738457665755,0.03115596,216.45,216.42,12.63501777]
[1738457668162,4.6191,216.51,216.42,12.63501777]
[1738457668465,4.6191,216.5,216.45,12.63501777]
[1738457668764,4.6189,216.52,216.45,12.63501777]
[1738457668954,1.4051,216.62,216.41,1.5048]
[1738457668955,2.9022,216.62,216.48,12.63501777]
[1738457669154,0.03371561,216.57,216.53,0.02943704]
[1738457669461,4.6181,216.55,216.53,0.02943704]
[1738457673765,2.9022,216.68,216.54,12.63501777]
[1738457673963,2.9022,216.68,216.58,12.63501777]
[1738457674665,4.6166,216.62,216.58,12.63501777]
[1738457674968,0.03301214,216.62,216.58,0.03216191]
[1738457675366,4.6172,216.59,216.58,0.03216191]
[1738457676563,0.03301214,216.62,216.58,0.03216191]
[1738457676767,4.6171,216.6,216.58,0.03216191]
[1738457677071,0.03301214,216.62,216.58,0.03216191]
[1738457677369,4.6172,216.59,216.58,0.03216191]
[1738457679473,1.4993,216.61,216.49,12.63501777]
[1738457680770,0.03472137,216.57,216.53,0.03057569]
[1738457681877,4.6181,216.55,216.53,0.03057569]
[1738457684576,0.03472137,216.57,216.56,4.6178]
[1738457684775,65.50040073,216.77,216.56,4.6178]
[1738457684776,26.66390818,216.74,216.56,12.63501777]
[1738457684976,26.66390818,216.74,216.62,12.63501777]
[1738457685479,6.28927704,216.73,216.62,12.63501777]
[1738457685681,6.28927704,216.73,216.59,12.63501777]
[1738457685875,0.02920628,216.7,216.65,0.02986683]
[1738457686279,4.6157,216.66,216.65,0.02986683]
[1738457686780,4.6166,216.62,216.56,12.63501777]
[1738457686976,12.63501777,216.7,216.56,12.63501777]
[1738457687172,12.63501777,216.64,216.5,12.63501777]
[1738457687377,2.9375,216.63,216.5,12.63501777]
[1738457687879,12.63501777,216.61,216.54,0.03042476]
[1738457688080,4.618,216.55,216.54,0.03042476]
[1738457688779,2.9375,216.63,216.54,0.03042476]
[1738457689479,0.03068952,216.61,216.54,0.03042476]
[1738457689882,4.6172,216.59,216.54,0.03042476]
[1738457690579,0.03068952,216.61,216.54,0.03042476]
[1738457691784,0.03068952,216.61,216.56,12.63501777]
[1738457695692,0.03068952,216.61,216.59,12.63501777]
[1738457697982,4.4084,216.69,216.59,12.63501777]
[1738457697983,1.4512,216.69,216.59,12.63501777]
[1738457698183,12.63501777,216.77,216.64,12.63501777]
[1738457698378,1.4321,216.76,216.64,12.63501777]
[1738457698583,1.4321,216.76,216.67,12.63501777]
[1738457698784,4.6143,216.73,216.67,12.63501777]
[1738457698984,1.4321,216.76,216.67,12.63501777]
[1738457699182,0.03488915,216.72,216.68,0.02937635]
[1738457701490,4.64938915,216.72,216.68,0.02937635]
[1738457701889,4.6147,216.71,216.68,0.02937635]
[1738457702086,0.03488915,216.72,216.68,0.02937635]
[1738457702592,4.6151,216.69,216.68,0.02937635]
[1738457703288,4.6164,216.63,216.56,1.5244]
[1738457703487,12.63501777,216.68,216.55,12.63501777]
[1738457703693,1.5457,216.67,216.55,12.63501777]
[1738457704295,1.5457,216.67,216.49,193.5244]
[1738457704296,4.6174,216.59,216.52,12.63501777]
[1738457704493,0.03436568,216.63,216.59,0.03507823]
[1738457704690,12.63501777,216.65,216.59,0.03507823]
[1738457704897,12.63501777,216.65,216.52,12.63501777]
[1738457705093,0.03524846,216.63,216.52,12.63501777]
[1738457705295,0.03524846,216.63,216.56,0.03426062]
[1738457706396,4.6174,216.58,216.56,0.03426062]
[1738457707797,3.1,216.57,216.41,20.26764907]
[1738457707997,1.4742,216.56,216.37,20.26764907]
[1738457708201,1.4742,216.56,216.41,20.26764907]
[1738457708601,4.6187,216.52,216.44,4.6203]
[1738457708993,0.03024888,216.5,216.46,0.03347358]
[1738457711904,3.1,216.64,216.49,20.26764907]
[1738457712403,4.6176,216.57,216.49,20.26764907]
[1738457712803,4.6178,216.56,216.49,20.26764907]
[1738457713003,0.03472111,216.55,216.51,0.03475951]
[1738457716608,4.6185,216.53,216.51,0.03475951]
[1738457717108,0.03472111,216.55,216.51,0.03475951]
[1738457717306,4.6183,216.54,216.51,0.03475951]
[1738457717507,0.03472111,216.55,216.51,0.03475951]
[1738457719503,0.03472111,216.55,216.52,20.26764907]
[1738457719910,0.03472111,216.55,216.52,24.88624907]
[1738457720508,0.03472111,216.55,216.52,20.26764907]
[1738457720709,0.03472111,216.55,216.53,4.6184]
[1738457720909,0.03472111,216.55,216.52,20.26764907]
[1738457721211,4.6165,216.63,216.52,20.26764907]
[1738457721808,4.6165,216.63,216.54,4.6182]
[1738457722308,0.03346562,216.61,216.56,0.03266509]
[1738457723717,0.03346562,216.61,216.56,20.30031416]
[1738457723972,27.41817543,216.78,216.6,20.26764907]
[1738457724147,30.38847543,216.78,216.64,20.26764907]
[1738457724442,4.6145,216.72,216.64,24.88374907]
[1738457725028,4.6145,216.72,216.64,20.26764907]
[1738457725228,0.03002474,216.7,216.66,0.03247802]
[1738457728845,0.03002474,216.7,216.66,4.64807802]
[1738457729044,0.03002474,216.7,216.68,20.26764907]
[1738457729554,4.6133,216.78,216.68,20.26764907]
[1738457729793,1.4344,216.84,216.71,12.64439442]
[1738457730740,0.03100267,216.8,216.75,0.03427332]
[1738457731248,4.6134,216.77,216.75,0.03427332]
[1738457732346,4.6136,216.76,216.75,0.03427332]
[1738457733444,4.6133,216.78,216.75,0.03427332]
[1738457733973,4.6135,216.77,216.75,0.03427332]
[1738457734556,4.6136,216.76,216.75,0.03427332]
[1738457734957,0.03100267,216.8,216.75,4.64797332]
[1738457735156,0.03100267,216.8,216.75,0.03427332]
[1738457735759,4.6136,216.76,216.75,0.03427332]
[1738457738455,0.03100267,216.8,216.75,0.03427332]
[1738457739345,4.6134,216.77,216.75,0.03427332]
[1738457740225,4.6132,216.78,216.75,0.03427332]
[1738457741535,0.03100267,216.8,216.75,0.03427332]
[1738457741835,4.6134,216.77,216.75,0.03427332]
[1738457742134,0.03100267,216.8,216.75,0.03427332]
[1738457743333,4.6134,216.77,216.75,0.03427332]
[1738457744232,4.6136,216.76,216.75,0.03427332]
[1738457745137,4.6144,216.72,216.65,20.23109928]
[1738457745339,1.4904,216.82,216.65,20.23109928]
[1738457745939,4.6145,216.72,216.65,20.23109928]
[1738457746238,0.03535006,216.71,216.66,0.03050384]
[1738457746536,4.65005006,216.71,216.66,0.03050384]
[1738457746935,0.03535006,216.71,216.66,0.03050384]
[1738457749840,0.03535006,216.71,216.7,20.23109928]
[1738457750341,0.03535006,216.71,216.66,20.26160312]
[1738457751830,0.03535006,216.71,216.68,12.64829575]
[1738457755139,0.03535006,216.71,216.66,0.03050384]
[1738457755838,4.6155,216.67,216.66,0.03050384]
[1738457756041,0.03535006,216.71,216.66,0.03050384]
[1738457756344,4.6153,216.68,216.66,0.03050384]
[1738457757038,0.03535006,216.71,216.66,0.03050384]
[1738457758043,4.65005006,216.71,216.68,12.64829575]
[1738457758240,0.03535006,216.71,216.68,12.64829575]
[1738457759643,0.03535006,216.71,216.68,17.26359575]
[1738457760143,0.03535006,216.71,216.68,12.64829575]
[1738457760839,4.64995006,216.71,216.68,12.64829575]
[1738457761044,0.03535006,216.71,216.68,12.64829575]
[1738457763241,28.14680818,216.83,216.68,12.64829575]
[1738457763547,28.14680818,216.83,216.72,12.64829575]
[1738457763846,4.6134,216.77,216.72,12.64829575]
[1738457764345,4.64724994,216.77,216.72,12.67907666]
[1738457765947,0.03384994,216.77,216.72,12.67907666]
[1738457766144,4.6136,216.76,216.72,12.67907666]
[1738457767951,4.64724994,216.77,216.72,12.67907666]
[1738457771654,0.03384994,216.77,216.72,12.67907666]
[1738457772050,0.03384994,216.77,216.75,12.64829575]
[1738457772256,0.03384994,216.77,216.75,17.26209575]
[1738457773156,0.03384994,216.77,216.75,12.64829575]
[1738457776061,0.03384994,216.77,216.75,17.26209575]
[1738457776259,1.4517,216.89,216.75,12.64829575]
[1738457776559,1.4517,216.89,216.81,12.64829575]
[1738457776764,4.6112,216.88,216.81,12.64829575]
[1738457777458,0.03385525,216.87,216.82,0.03388225]
[1738457777851,0.03385525,216.87,216.84,12.64829575]
[1738457778359,0.03385525,216.87,216.86,4.6114]
[1738457778855,6.28927704,216.95,216.89,12.64829575]
[1738457779764,0.03149575,216.94,216.9,0.0352508]
[1738457780561,0.03149575,216.94,216.92,12.64829575]
[1738457782562,1.39037455,217.01,216.92,12.64829575]
[1738457783061,1.5214,217.04,216.95,12.64829575]
[1738457783560,7.75427704,217.05,216.95,12.64829575]
[1738457783561,4.6078,217.03,216.95,12.64829575]
[1738457783754,0.031253,217.02,216.98,12.64829575]
[1738457786660,4.6085,217.0,216.97,0.03433329]
[1738457786859,0.031253,217.02,216.97,0.03433329]
[1738457789571,4.6089,216.98,216.97,0.03433329]
[1738457792169,4.6087,217.0,216.97,0.03433329]
[1738457792668,0.031253,217.02,216.97,0.03433329]
[1738457792868,4.639453,217.02,216.97,0.03433329]
[1738457793570,4.6083,217.01,216.97,0.03433329]
[1738457799175,4.639253,217.02,216.97,0.03433329]
[1738457799772,4.6083,217.01,216.97,0.03433329]
[1738457801377,4.639353,217.02,216.97,0.03433329]
[1738457801575,0.031253,217.02,216.98,12.64829575]
[1738457801770,0.031253,217.02,217.01,12.64829575]
[1738457801985,4.6065,217.1,217.01,12.64829575]
[1738457802275,4.6065,217.1,217.05,12.64829575]
[1738457802780,4.6066,217.09,217.02,12.64829575]
[1738457803078,0.03191007,217.08,217.03,0.0352097]
[1738457803274,4.6072,217.06,217.03,0.0352097]
[1738457803479,0.03191007,217.08,217.03,0.0352097]
[1738457803979,4.6076,217.04,217.03,0.0352097]
[1738457805277,4.6074,217.06,217.03,0.0352097]
[1738457805580,0.03191007,217.08,217.03,0.0352097]
[1738457809685,0.03191007,217.08,217.05,12.64829575]
[1738457817984,4.607,217.07,217.03,0.0352097]
[1738457818188,0.03191007,217.08,217.03,0.0352097]
[1738457818690,4.6074,217.05,217.03,0.0352097]
[1738457819393,4.63881007,217.08,217.03,0.0352097]
[1738457819583,0.03191007,217.08,217.03,0.0352097]
[1738457821791,4.6073,217.06,217.03,0.0352097]
[1738457823191,4.54061007,217.08,217.03,0.0352097]
[1738457823388,4.6075,217.05,217.03,0.0352097]
[1738457823885,4.54061007,217.08,216.97,4.6091]
[1738457824088,12.64829575,217.07,216.93,12.64829575]
[1738457824393,4.6072,217.07,217.0,4.6084]
[1738457824789,4.5087,217.08,217.0,4.6084]
[1738457825191,4.6074,217.05,217.02,0.02992882]
[1738457826395,0.02966362,217.06,217.02,0.02992882]
[1738457826590,0.02966362,217.06,216.97,8.07335307]
[1738457826591,8.07335307,217.04,216.97,8.07335307]
[1738457826790,8.07335307,217.02,216.93,8.07335307]
[1738457826990,4.6091,216.97,216.93,8.07335307]
[1738457827394,8.07335307,217.0,216.93,8.07335307]
[1738457827592,4.6093,216.96,216.93,8.07335307]
[1738457827796,1.4013,216.99,216.91,4.6104]
[1738457827797,1.43127253,216.99,216.94,0.02911689]
[1738457828697,1.43127253,216.99,216.86,12.62417115]
[1738457828901,1.5099,216.98,216.86,12.62417115]
[1738457829397,3.08,216.97,216.86,12.62417115]
[1738457829599,12.62417115,216.94,216.8,12.62417115]
[1738457829795,12.65720345,216.94,216.89,0.03118]
[1738457829997,12.62417115,216.94,216.8,12.62417115]
[1738457830701,4.6121,216.83,216.77,12.62417115]
[1738457831098,12.62417115,216.91,216.77,12.62417115]
[1738457831298,0.03456043,216.82,216.78,0.03287508]
[1738457831498,12.62417115,216.91,216.78,0.03287508]
[1738457831699,0.02930779,216.82,216.78,0.03287508]
[1738457831899,1.4866,216.9,216.78,0.03287508]
[1738457832095,0.03205907,216.87,216.78,0.03287508]
[1738457833801,4.6117,216.85,216.78,4.64597508]
[1738457834806,4.6119,216.84,216.78,0.03287508]
[1738457835807,0.03205907,216.87,216.78,0.03287508]
[1738457836500,4.6118,216.85,216.78,0.03287508]
[1738457836706,0.03205907,216.87,216.78,0.03287508]
[1738457836901,0.03205907,216.87,216.8,12.62417115]
[1738457837406,4.6119,216.84,216.8,12.62417115]
[1738457840406,4.6124,216.82,216.78,0.03287508]
[1738457840606,6.1009,216.89,216.78,0.03287508]
[1738457840808,0.03471005,216.82,216.78,0.03287508]
[1738457841210,4.64711005,216.82,216.78,0.03287508]
[1738457841409,0.03471005,216.82,216.78,0.03287508]
[1738457842209,0.03471005,216.82,216.8,17.23687115]
[1738457843013,0.03471005,216.82,216.8,12.62417115]
[1738457847208,4.611,216.88,216.8,12.62417115]
[1738457847420,4.611,216.88,216.83,12.62417115]
[1738457847818,4.611,216.88,216.86,8.0837512]
[1738457849015,0.03169665,216.89,216.86,8.0837512]
[1738457849318,0.03169665,216.89,216.88,8.0837512]
[1738457849509,4.609,216.98,216.88,8.0837512]
[1738457849713,4.609,216.98,216.94,8.0837512]
[1738457850324,8.0837512,216.98,216.9,8.0837512]
[1738457850620,8.11673906,216.96,216.92,0.0301649]
[1738457850819,4.6099,216.93,216.92,0.0301649]
[1738457851913,0.03298786,216.96,216.92,0.0301649]
[1738457853218,0.03298786,216.96,216.92,4.6402649]
[1738457853719,0.03298786,216.96,216.92,0.0301649]
[1738457856223,4.6098,216.94,216.92,0.0301649]
[1738457856424,0.03298786,216.96,216.92,0.0301649]
[1738457858917,4.611,216.89,216.83,4.6121]
[1738457859123,12.62745862,216.94,216.8,12.62745862]
[1738457859522,4.6112,216.88,216.8,17.24015862]
[1738457859727,4.6112,216.88,216.8,12.62745862]
[1738457860225,0.03377744,216.86,216.82,0.03390358]
[1738457863236,0.03377744,216.86,216.83,12.62745862]
[1738457863927,0.03377744,216.86,216.84,4.6117]
[1738457864425,3.08,216.94,216.83,12.62745862]
[1738457864630,3.08,216.94,216.88,17.23845862]
[1738457864835,4.6093,216.97,216.88,17.23845862]
[1738457865331,4.6095,216.96,216.88,17.23845862]
[1738457865532,0.02974032,216.94,216.9,0.03363183]
[1738457865929,4.6102,216.92,216.9,0.03363183]
[1738457866128,0.02974032,216.94,216.9,0.03363183]
[1738457866334,4.6103,216.92,216.9,0.03363183]
[1738457866535,0.02974032,216.94,216.9,0.03363183]
[1738457867732,4.6102,216.92,216.9,0.03363183]
[1738457868128,4.63944032,216.94,216.9,0.03363183]
[1738457868327,0.02974032,216.94,216.9,0.03363183]
[1738457868735,4.6102,216.93,216.9,0.03363183]
[1738457869236,4.6099,216.93,216.9,0.03363183]
[1738457870632,0.02974032,216.94,216.9,0.03363183]
[1738457870831,4.6102,216.92,216.9,0.03363183]
[1738457871536,0.02974032,216.94,216.9,0.03363183]
[1738457872237,4.61,216.93,216.9,0.03363183]
[1738457872445,0.02974032,216.94,216.9,0.03363183]
[1738457873730,4.6103,216.92,216.9,0.03363183]
[1738457875236,4.61,216.93,216.9,0.03363183]
[1738457876450,0.02974032,216.94,216.9,0.03363183]
[1738457877139,4.6102,216.92,216.9,0.03363183]